fUST/lending_fUST_20240422
["ID","MTS","AMOUNT","RATE_DAILY","PERIOD"]
[323165870,1713765049760,-1055.43,0.00021917,2]
[323165871,1713765049770,-500.0,0.00021917,2]
[323165872,1713765049781,-771.25,0.00021917,2]
[323165873,1713765049790,-1447.74,0.00021917,2]
[323165874,1713765049800,-236.4521685,0.00021917,2]
[323165875,1713765049809,-2013.07,0.00021917,2]
[323165876,1713765049819,-785.54,0.00021917,2]
[323165877,1713765049830,-611.44025979,0.00021917,2]
[323165878,1713765049839,-500.0,0.00021917,2]
[323165879,1713765049850,-500.0,0.00021917,2]
[323165880,1713765049859,-500.0,0.00021917,2]
[323165881,1713765049869,-604.56,0.00021917,2]
[323165882,1713765049880,-666.16,0.00021917,2]
[323165883,1713765049890,-500.0,0.00021917,2]
[323165884,1713765049900,-883.61,0.00021917,2]
[323165885,1713765049910,-500.0,0.00021917,2]
[323165886,1713765049921,-500.0,0.00021917,2]
[323165887,1713765049931,-500.0,0.00021917,2]
[323165888,1713765049941,-500.0,0.00021917,2]
[323165889,1713765049951,-1185.42,0.00021917,2]
[323165890,1713765049961,-381.44444637,0.00021917,2]
[323165891,1713765049972,-500.0,0.00021917,2]
[323165892,1713765049981,-505.4782164,0.00021917,2]
[323165893,1713765049992,-502.21502693,0.00021917,2]
[323165894,1713765050002,-507.29413158,0.00021917,2]
[323165895,1713765050013,-500.0,0.00021917,2]
[323165896,1713765050024,-2042.85,0.00021917,2]
[323165897,1713765050035,-500.0,0.00021917,2]
[323165898,1713765050045,-500.0,0.00021917,2]
[323165899,1713765050055,-500.0,0.00021917,2]
[323165900,1713765050066,-151.0,0.00021917,2]
[323165901,1713765050077,-500.0,0.00021917,2]
[323165902,1713765050087,-500.0,0.00021917,2]
[323165903,1713765050097,-500.0,0.00021917,2]
[323165904,1713765050107,-500.0,0.00021917,2]
[323165905,1713765050116,-2302.06,0.00021917,2]
[323165906,1713765050126,-500.0,0.00021917,2]
[323165907,1713765050135,-500.0,0.00021917,2]
[323165908,1713765050145,-500.0,0.00021917,2]
[323165909,1713765050154,-766.22,0.00021917,2]
[323165910,1713765050163,-358.513266,0.00021917,2]
[323165911,1713765050173,-358.513266,0.00021917,2]
[323165912,1713765050183,-358.513266,0.00021917,2]
[323165913,1713765050193,-358.513266,0.00021917,2]
[323165914,1713765050203,-358.513266,0.00021917,2]
[323165915,1713765050212,-358.513266,0.00021917,2]
[323165916,1713765050222,-358.513266,0.00021917,2]
[323165917,1713765050233,-358.513266,0.00021917,2]
[323165918,1713765050242,-358.513266,0.00021917,2]
[323165919,1713765050252,-500.0,0.00021917,2]
[323165920,1713765050263,-500.0,0.00021917,2]
[323165921,1713765050274,-358.513266,0.00021917,2]
[323165922,1713765050284,-358.513266,0.00021917,2]
[323165923,1713765050294,-358.513266,0.00021917,2]
[323165924,1713765050303,-358.513266,0.00021917,2]
[323165925,1713765050314,-358.513266,0.00021917,2]
[323165926,1713765050323,-358.513266,0.00021917,2]
[323165927,1713765050332,-358.513266,0.00021917,2]
[323165928,1713765050342,-358.513266,0.00021917,2]
[323165929,1713765050352,-358.513266,0.00021917,2]
[323165930,1713765050361,-358.513266,0.00021917,2]
[323165931,1713765050371,-358.513258,0.00021917,2]
[323165932,1713765050382,-1187.47,0.00021917,2]
[323165933,1713765050391,-500.0,0.00021917,2]
[323165934,1713765050400,-500.0,0.00021917,2]
[323165935,1713765050410,-513.22901312,0.00021917,2]
[323165936,1713765050419,-500.0,0.00021917,2]
[323165937,1713765050428,-500.0,0.00021917,2]
[323165938,1713765050437,-500.0,0.00021917,2]
[323165939,1713765050447,-501.32989006,0.00021917,2]
[323165940,1713765050456,-500.0,0.00021917,2]
[323165941,1713765050466,-537.45793278,0.00021917,2]
[323165942,1713765050475,-151.0,0.00021917,2]
[323165943,1713765050485,-887.33,0.00021917,2]
[323165944,1713765050494,-151.0,0.00021917,2]
[323165945,1713765050503,-187.447878,0.00021917,2]
[323165946,1713765050512,-500.0,0.00021917,2]
[323165947,1713765050521,-592.61,0.00021917,2]
[323165948,1713765050532,-508.0276181,0.00021917,2]
[323165949,1713765050544,-500.0,0.00021917,2]
[323165950,1713765050555,-500.0,0.00021917,2]
[323165951,1713765050564,-414.98379351,0.00021917,2]
[323165952,1713765050573,-500.0,0.00021917,2]
[323165953,1713765050584,-500.0,0.00021917,2]
[323165954,1713765050595,-151.0,0.00021917,2]
[323165955,1713765050605,-664.93,0.00021917,2]
[323165956,1713765050614,-151.0,0.00021917,2]
[323165957,1713765050628,-500.28009429,0.00021917,2]
[323165958,1713765050639,-500.0,0.00021917,2]
[323165959,1713765050650,-907.73,0.00021917,2]
[323165960,1713765050659,-500.0,0.00021917,2]
[323165961,1713765050671,-954.62,0.00021917,2]
[323165962,1713765050681,-500.0,0.00021917,2]
[323165963,1713765050692,-500.0,0.00021917,2]
[323165964,1713765050703,-500.0,0.00021917,2]
[323165965,1713765050714,-503.17030607,0.00021917,2]
[323165966,1713765050725,-500.0,0.00021917,2]
[323165967,1713765050735,-847.88,0.00021917,2]
[323165968,1713765050745,-410.15120928,0.00021917,2]
[323165969,1713765050756,-500.0,0.00021917,2]
[323165970,1713765050766,-559.17,0.00021917,2]
[323165971,1713765050777,-738.34,0.00021917,2]
[323165972,1713765050788,-151.0,0.00021917,2]
[323165973,1713765050798,-226.834198,0.00021917,2]
[323165974,1713765050809,-500.0,0.00021917,2]
[323165975,1713765050819,-500.0,0.00021917,2]
[323165976,1713765050830,-500.0,0.00021917,2]
[323165977,1713765050840,-500.0,0.00021917,2]
[323165978,1713765050850,-500.0,0.00021917,2]
[323165979,1713765050859,-505.91864398,0.00021917,2]
[323165980,1713765050870,-1313.21,0.00021917,2]
[323165981,1713765050881,-500.0,0.00021917,2]
[323165982,1713765050890,-500.0,0.00021917,2]
[323165983,1713765050900,-500.0,0.00021917,2]
[323165984,1713765050910,-501.01463896,0.00021917,2]
[323165985,1713765050920,-500.0,0.00021917,2]
[323165986,1713765051044,-1369.53,0.00021917,2]
[323165987,1713765051055,-1369.53,0.00021917,2]
[323165988,1713765051064,-1369.53,0.00021917,2]
[323165989,1713765051075,-1369.53,0.00021917,2]
[323165990,1713765051085,-1369.53,0.00021917,2]
[323165991,1713765051095,-1369.53,0.00021917,2]
[323165992,1713765051105,-1312.89,0.00021917,2]
[323165993,1713765051116,-1369.53,0.00021917,2]
[323165994,1713765051125,-1369.53,0.00021917,2]
[323165995,1713765051135,-1369.53,0.00021917,2]
[323165996,1713765051144,-1369.53,0.00021917,2]
[323165997,1713765051154,-1369.53,0.00021917,2]
[323165998,1713765051164,-1369.53,0.00021917,2]
[323165999,1713765051174,-1369.53,0.00021917,2]
[323166000,1713765051185,-1369.53,0.00021917,2]
[323166001,1713765051195,-1369.53,0.00021917,2]
[323166002,1713765051205,-1369.53,0.00021917,2]
[323166003,1713765051215,-660.32,0.00021917,2]
[323166004,1713765051224,-151.0,0.00021917,2]
[323166005,1713765051233,-151.0,0.00021917,2]
[323166006,1713765051242,-151.0,0.00021917,2]
[323166007,1713765051252,-505.00897796,0.00021917,2]
[323166008,1713765051261,-151.0,0.00021917,2]
[323166009,1713765051270,-151.0,0.00021917,2]
[323166010,1713765051279,-151.0,0.00021917,2]
[323166011,1713765051289,-151.0,0.00021917,2]
[323166012,1713765051299,-151.0,0.00021917,2]
[323166013,1713765051309,-151.0,0.00021917,2]
[323166014,1713765051319,-1984.84,0.00021917,2]
[323166015,1713765051330,-151.0,0.00021917,2]
[323166016,1713765051340,-151.0,0.00021917,2]
[323166017,1713765051349,-151.0,0.00021917,2]
[323166018,1713765051359,-151.0,0.00021917,2]
[323166019,1713765051368,-599.64584797,0.00021917,2]
[323166020,1713765051379,-151.0,0.00021917,2]
[323166021,1713765051389,-151.0,0.00021917,2]
[323166022,1713765051399,-500.0,0.00021917,2]
[323166023,1713765051408,-151.0,0.00021917,2]
[323166024,1713765051418,-227.044544,0.00021917,2]
[323166025,1713765051427,-500.0,0.00021917,2]
[323166026,1713765051436,-500.0,0.00021917,2]
[323166027,1713765051445,-500.0,0.00021917,2]
[323166028,1713765051454,-606.19,0.00021917,2]
[323166029,1713765051464,-555.25,0.00021917,2]
[323166030,1713765051473,-1081.14,0.00021917,2]
[323166031,1713765051482,-687.51,0.00021917,2]
[323166032,1713765051492,-2914.422184,0.00021917,2]
[323166033,1713765051501,-2914.422184,0.00021917,2]
[323166034,1713765051511,-2914.422184,0.00021917,2]
[323166035,1713765051521,-500.0,0.00021917,2]
[323166036,1713765051531,-2914.422184,0.00021917,2]
[323166037,1713765051541,-2914.422184,0.00021917,2]
[323166038,1713765051552,-2914.422184,0.00021917,2]
[323166039,1713765051561,-2914.422184,0.00021917,2]
[323166040,1713765051571,-2914.422184,0.00021917,2]
[323166041,1713765051583,-2914.422184,0.00021917,2]
[323166042,1713765051594,-2914.422184,0.00021917,2]
[323166043,1713765051605,-2914.422184,0.00021917,2]
[323166044,1713765051616,-500.0,0.00021917,2]
[323166045,1713765051630,-2914.422184,0.00021917,2]
[323166046,1713765051640,-2914.422184,0.00021917,2]
[323166047,1713765051651,-3996.39,0.00021917,2]
[323166048,1713765051661,-2914.422184,0.00021917,2]
[323166049,1713765051671,-2914.422184,0.00021917,2]
[323166050,1713765051681,-500.0,0.00021917,2]
[323166051,1713765051690,-2914.422184,0.00021917,2]
[323166052,1713765051700,-2914.422184,0.00021917,2]
[323166053,1713765051711,-2914.422184,0.00021917,2]
[323166054,1713765051721,-500.0,0.00021917,2]
[323166055,1713765051732,-2914.422184,0.00021917,2]
[323166056,1713765051743,-2914.42219219,0.00021917,2]
[323166057,1713765051753,-500.0,0.00021917,2]
[323166058,1713765051763,-500.0,0.00021917,2]
[323166059,1713765051773,-268.739506,0.00021917,2]
[323166060,1713765051784,-268.739506,0.00021917,2]
[323166061,1713765051794,-268.739506,0.00021917,2]
[323166062,1713765051804,-268.739506,0.00021917,2]
[323166063,1713765051816,-268.739506,0.00021917,2]
[323166064,1713765051826,-268.739506,0.00021917,2]
[323166065,1713765051836,-268.739506,0.00021917,2]
[323166066,1713765051846,-1607.43,0.00021917,2]
[323166067,1713765051857,-268.739506,0.00021917,2]
[323166068,1713765051867,-500.0,0.00021917,2]
[323166069,1713765051878,-918.37,0.00021917,2]
[323166070,1713765051888,-268.739506,0.00021917,2]
[323166071,1713765051898,-268.739506,0.00021917,2]
[323166072,1713765051908,-268.739506,0.00021917,2]
[323166073,1713765051917,-268.739506,0.00021917,2]
[323166074,1713765051926,-268.739506,0.00021917,2]
[323166075,1713765051935,-479.93168865,0.00021917,2]
[323166076,1713765051946,-500.0,0.00021917,2]
[323166077,1713765051957,-268.739506,0.00021917,2]
[323166078,1713765051967,-906.19,0.00021917,2]
[323166079,1713765051976,-500.0,0.00021917,2]
[323166080,1713765051987,-500.0,0.00021917,2]
[323166081,1713765051998,-268.739506,0.00021917,2]
[323166082,1713765052008,-735.49,0.00021917,2]
[323166083,1713765052018,-268.739506,0.00021917,2]
[323166084,1713765052029,-268.739506,0.00021917,2]
[323166085,1713765052039,-268.739506,0.00021917,2]
[323166086,1713765052051,-268.739506,0.00021917,2]
[323166087,1713765052061,-500.0,0.00021917,2]
[323166088,1713765052072,-2652.38,0.00021917,2]
[323166089,1713765052081,-268.739498,0.00021917,2]
[323166090,1713765052090,-1484.35,0.00021917,2]
[323166091,1713765052099,-500.0,0.00021917,2]
[323166092,1713765052109,-502.72103971,0.00021917,2]
[323166093,1713765052120,-854.05,0.00021917,2]
[323166094,1713765052131,-500.0,0.00021917,2]
[323166095,1713765052141,-1736.27,0.00021917,2]
[323166096,1713765052152,-500.0,0.00021917,2]
[323166097,1713765052162,-2879.82,0.00021917,2]
[323166098,1713765052173,-851.23,0.00021917,2]
[323166099,1713765052184,-501.57914784,0.00021917,2]
[323166100,1713765052194,-503.11231711,0.00021917,2]
[323166101,1713765052203,-1000.0,0.00021917,2]
[323166102,1713765052214,-500.0,0.00021917,2]
[323166103,1713765052225,-500.0,0.00021917,2]
[323166104,1713765052236,-500.0,0.00021917,2]
[323166105,1713765052247,-500.0,0.00021917,2]
[323166106,1713765052257,-703.33,0.00021917,2]
[323166107,1713765052267,-500.0,0.00021917,2]
[323166108,1713765052277,-3795.36,0.00021917,2]
[323166109,1713765052287,-535.86,0.00021917,2]
[323166110,1713765052298,-492.11998402,0.00021917,2]
[323166111,1713765052307,-512.15596834,0.00021917,2]
[323166112,1713765052318,-500.0,0.00021917,2]
[323166113,1713765052327,-500.0,0.00021917,2]
[323166114,1713765052337,-2496.44,0.00021917,2]
[323166115,1713765052348,-1245.48,0.00021917,2]
[323166116,1713765052359,-500.0,0.00021917,2]
[323166117,1713765052369,-500.0,0.00021917,2]
[323166118,1713765052380,-500.0,0.00021917,2]
[323166119,1713765052390,-500.0,0.00021917,2]
[323166120,1713765052399,-497.71307563,0.00021917,2]
[323166121,1713765052408,-500.0,0.00021917,2]
[323166122,1713765052417,-785.14,0.00021917,2]
[323166123,1713765052425,-500.0,0.00021917,2]
[323166124,1713765052435,-500.0,0.00021917,2]
[323166125,1713765052445,-500.0,0.00021917,2]
[323166126,1713765052454,-500.0,0.00021917,2]
[323166127,1713765052463,-500.0,0.00021917,2]
[323166128,1713765052472,-500.0,0.00021917,2]
[323166129,1713765052481,-500.0,0.00021917,2]
[323166130,1713765052491,-1317.98,0.00021917,2]
[323166131,1713765052501,-500.0,0.00021917,2]
[323166132,1713765052510,-500.0,0.00021917,2]
[323166133,1713765052519,-500.0,0.00021917,2]
[323166134,1713765052529,-500.0,0.00021917,2]
[323166135,1713765052540,-2726.08,0.00021917,2]
[323166136,1713765052555,-500.0,0.00021917,2]
[323166137,1713765052564,-500.0,0.00021917,2]
[323166138,1713765052573,-3152.52,0.00021917,2]
[323166139,1713765052583,-2574.24,0.00021917,2]
[323166140,1713765052594,-500.0,0.00021917,2]
[323166141,1713765052604,-1301.9,0.00021917,2]
[323166142,1713765052614,-502.04529994,0.00021917,2]
[323166143,1713765052623,-500.0,0.00021917,2]
[323166144,1713765052636,-569.65,0.00021917,2]
[323166145,1713765052647,-865.83,0.00021917,2]
[323166146,1713765052658,-500.0,0.00021917,2]
[323166147,1713765052669,-500.0,0.00021917,2]
[323166148,1713765052678,-582.48,0.00021917,2]
[323166149,1713765052689,-500.0,0.00021917,2]
[323166150,1713765052699,-9936.52,0.00021917,2]
[323166151,1713765052709,-500.0,0.00021917,2]
[323166152,1713765052718,-500.0,0.00021917,2]
[323166153,1713765052728,-1030.26,0.00021917,2]
[323166154,1713765052737,-500.0,0.00021917,2]
[323166155,1713765052746,-500.0,0.00021917,2]
[323166156,1713765052756,-500.0,0.00021917,2]
[323166157,1713765052765,-505.74,0.00021917,2]
[323166158,1713765052774,-500.0,0.00021917,2]
[323166159,1713765052783,-646.6,0.00021917,2]
[323166160,1713765052792,-500.0,0.00021917,2]
[323166161,1713765052801,-500.0,0.00021917,2]
[323166162,1713765052810,-1232.26,0.00021917,2]
[323166163,1713765052820,-500.0,0.00021917,2]
[323166164,1713765052829,-500.0,0.00021917,2]
[323166165,1713765052838,-444.78775694,0.00021917,2]
[323166166,1713765052847,-151.0,0.00021917,2]
[323166167,1713765052856,-151.0,0.00021917,2]
[323166168,1713765052865,-581.6,0.00021917,2]
[323166169,1713765052875,-151.0,0.00021917,2]
[323166170,1713765052885,-151.0,0.00021917,2]
[323166171,1713765052895,-151.0,0.00021917,2]
[323166172,1713765052904,-151.0,0.00021917,2]
[323166173,1713765052915,-7189.65,0.00021917,2]
[323166174,1713765052925,-151.0,0.00021917,2]
[323166175,1713765052936,-558.3874528,0.00021917,2]
[323166176,1713765052947,-500.0,0.00021917,2]
[323166177,1713765052959,-15264.86,0.00021917,2]
[323166178,1713765052969,-1356.65,0.00021917,2]
[323166179,1713765052978,-661.23,0.00021917,2]
[323166180,1713765052988,-151.0,0.00021917,2]
[323166181,1713765052999,-151.0,0.00021917,2]
[323166182,1713765053009,-151.0,0.00021917,2]
[323166183,1713765053019,-151.0,0.00021917,2]
[323166184,1713765053029,-151.0,0.00021917,2]
[323166185,1713765053040,-151.0,0.00021917,2]
[323166186,1713765053049,-151.0,0.00021917,2]
[323166187,1713765053060,-151.0,0.00021917,2]
[323166188,1713765053070,-151.0,0.00021917,2]
[323166189,1713765053079,-151.0,0.00021917,2]
[323166190,1713765053089,-500.0,0.00021917,2]
[323166191,1713765053099,-151.0,0.00021917,2]
[323166192,1713765053109,-165.859246,0.00021917,2]
[323166193,1713765053119,-500.0,0.00021917,2]
[323166194,1713765053218,-500.0,0.00021917,2]
[323166195,1713765053239,-500.0,0.00021917,2]
[323166196,1713765053248,-500.0,0.00021917,2]
[323166197,1713765053258,-851.53,0.00021917,2]
[323166198,1713765053267,-424.98933168,0.00021917,2]
[323166199,1713765053276,-500.0,0.00021917,2]
[323166200,1713765053285,-784.73,0.00021917,2]
[323166201,1713765053295,-500.0,0.00021917,2]
[323166202,1713765053304,-9893.44,0.00021917,2]
[323166203,1713765053315,-500.0,0.00021917,2]
[323166204,1713765053326,-511.29812727,0.00021917,2]
[323166205,1713765053336,-1439.16,0.00021917,2]
[323166206,1713765053346,-502.83666308,0.00021917,2]
[323166207,1713765053357,-500.0,0.00021917,2]
[323166208,1713765053367,-400.91364486,0.00021917,2]
[323166209,1713765053378,-657.66,0.00021917,2]
[323166210,1713765053389,-826.05,0.00021917,2]
[323166211,1713765053400,-2991.12,0.00021917,2]
[323166212,1713765053410,-500.0,0.00021917,2]
[323166213,1713765053419,-1423.97,0.00021917,2]
[323166214,1713765053430,-500.0,0.00021917,2]
[323166215,1713765053441,-151.0,0.00021917,2]
[323166216,1713765053451,-151.0,0.00021917,2]
[323166217,1713765053461,-151.0,0.00021917,2]
[323166218,1713765053470,-151.0,0.00021917,2]
[323166219,1713765053479,-1138.52,0.00021917,2]
[323166220,1713765053489,-623.1,0.00021917,2]
[323166221,1713765053498,-1062.69,0.00021917,2]
[323166222,1713765053508,-500.0,0.00021917,2]
[323166223,1713765053517,-10542.19,0.00021917,2]
[323166224,1713765053526,-500.0,0.00021917,2]
[323166225,1713765053536,-500.0,0.00021917,2]
[323166226,1713765053551,-500.0,0.00021917,2]
[323166227,1713765053560,-500.0,0.00021917,2]
[323166228,1713765053569,-500.0,0.00021917,2]
[323166229,1713765053578,-500.0,0.00021917,2]
[323166230,1713765053588,-500.0,0.00021917,2]
[323166231,1713765053597,-399.02971077,0.00021917,2]
[323166232,1713765053606,-500.0,0.00021917,2]
[323166233,1713765053615,-234.362875,0.00021917,2]
[323166234,1713765053625,-234.362875,0.00021917,2]
[323166235,1713765053637,-2036.78,0.00021917,2]
[323166236,1713765053647,-234.362875,0.00021917,2]
[323166237,1713765053656,-500.0,0.00021917,2]
[323166238,1713765053667,-234.362875,0.00021917,2]
[323166239,1713765053676,-234.362875,0.00021917,2]
[323166240,1713765053686,-234.362875,0.00021917,2]
[323166241,1713765053694,-234.362875,0.00021917,2]
[323166242,1713765053703,-234.362875,0.00021917,2]
[323166243,1713765053712,-234.362875,0.00021917,2]
[323166244,1713765053722,-234.362875,0.00021917,2]
[323166245,1713765053733,-234.362875,0.00021917,2]
[323166246,1713765053742,-234.362875,0.00021917,2]
[323166247,1713765053752,-234.362875,0.00021917,2]
[323166248,1713765053761,-500.0,0.00021917,2]
[323166249,1713765053770,-234.362875,0.00021917,2]
[323166250,1713765053780,-234.362875,0.00021917,2]
[323166251,1713765053790,-2798.59,0.00021917,2]
[323166252,1713765053800,-234.362875,0.00021917,2]
[323166253,1713765053810,-234.362875,0.00021917,2]
[323166254,1713765053820,-13191.55,0.00021917,2]
[323166255,1713765053830,-948.12,0.00021917,2]
[323166256,1713765053839,-234.362875,0.00021917,2]
[323166257,1713765053848,-234.362875,0.00021917,2]
[323166258,1713765053859,-500.0,0.00021917,2]
[323166259,1713765053867,-1822.9,0.00021917,2]
[323166260,1713765053878,-234.362871,0.00021917,2]
[323166261,1713765053887,-500.0,0.00021917,2]
[323166262,1713765053896,-1227.17,0.00021917,2]
[323166263,1713765053905,-500.0,0.00021917,2]
[323166264,1713765053914,-503.54606543,0.00021917,2]
[323166265,1713765053923,-501.63269683,0.00021917,2]
[323166266,1713765053932,-938.44,0.00021917,2]
[323166267,1713765053941,-500.0,0.00021917,2]
[323166268,1713765053950,-500.0,0.00021917,2]
[323166269,1713765053959,-500.0,0.00021917,2]
[323166270,1713765053969,-500.0,0.00021917,2]
[323166271,1713765053977,-151.0,0.00021917,2]
[323166272,1713765053987,-151.0,0.00021917,2]
[323166273,1713765053996,-1846.75,0.00021917,2]
[323166274,1713765054005,-151.0,0.00021917,2]
[323166275,1713765054014,-151.0,0.00021917,2]
[323166276,1713765054023,-500.0,0.00021917,2]
[323166277,1713765054032,-151.0,0.00021917,2]
[323166278,1713765054041,-151.0,0.00021917,2]
[323166279,1713765054050,-500.0,0.00021917,2]
[323166280,1713765054059,-151.0,0.00021917,2]
[323166281,1713765054068,-151.0,0.00021917,2]
[323166282,1713765054077,-500.0,0.00021917,2]
[323166283,1713765054086,-151.0,0.00021917,2]
[323166284,1713765054095,-500.0,0.00021917,2]
[323166285,1713765054104,-151.0,0.00021917,2]
[323166286,1713765054113,-500.0,0.00021917,2]
[323166287,1713765054122,-151.0,0.00021917,2]
[323166288,1713765054132,-500.0,0.00021917,2]
[323166289,1713765054140,-259.458084,0.00021917,2]
[323166290,1713765054149,-151.0,0.00021917,2]
[323166291,1713765054158,-500.0,0.00021917,2]
[323166292,1713765054167,-500.0,0.00021917,2]
[323166293,1713765054176,-151.0,0.00021917,2]
[323166294,1713765054184,-500.0,0.00021917,2]
[323166295,1713765054193,-151.0,0.00021917,2]
[323166296,1713765054202,-708.99,0.00021917,2]
[323166297,1713765054211,-500.0,0.00021917,2]
[323166298,1713765054220,-151.0,0.00021917,2]
[323166299,1713765054229,-500.0,0.00021917,2]
[323166300,1713765054239,-500.0,0.00021917,2]
[323166301,1713765054247,-500.0,0.00021917,2]
[323166302,1713765054256,-500.0,0.00021917,2]
[323166303,1713765054265,-500.0,0.00021917,2]
[323166304,1713765054274,-338.24283948,0.00021917,2]
[323166305,1713765054283,-151.0,0.00021917,2]
[323166306,1713765054292,-500.0,0.00021917,2]
[323166307,1713765054301,-151.0,0.00021917,2]
[323166308,1713765054310,-281.790592,0.00021917,2]
[323166309,1713765054319,-500.0,0.00021917,2]
[323166310,1713765054329,-496.80565774,0.00021917,2]
[323166311,1713765054338,-500.0,0.00021917,2]
[323166312,1713765054347,-449.30269817,0.00021917,2]
[323166313,1713765054357,-500.0,0.00021917,2]
[323166314,1713765054368,-500.0,0.00021917,2]
[323166315,1713765054377,-500.11814598,0.00021917,2]
[323166316,1713765054387,-500.0,0.00021917,2]
[323166317,1713765054397,-500.0,0.00021917,2]
[323166318,1713765054407,-151.0,0.00021917,2]
[323166319,1713765054415,-500.0,0.00021917,2]
[323166320,1713765054424,-151.0,0.00021917,2]
[323166321,1713765054434,-151.0,0.00021917,2]
[323166322,1713765054442,-151.0,0.00021917,2]
[323166323,1713765054451,-151.0,0.00021917,2]
[323166324,1713765054460,-151.0,0.00021917,2]
[323166325,1713765054469,-500.0,0.00021917,2]
[323166326,1713765054478,-151.0,0.00021917,2]
[323166327,1713765054487,-1515.99,0.00021917,2]
[323166328,1713765054495,-500.0,0.00021917,2]
[323166329,1713765054505,-151.0,0.00021917,2]
[323166330,1713765054514,-591.69,0.00021917,2]
[323166331,1713765054524,-289.649712,0.00021917,2]
[323166332,1713765054558,-199.44275265,0.00021917,2]
[323166333,1713765054567,-6707.25,0.00021917,2]
[323166334,1713765054576,-155.24034413,0.00021917,2]
[323166335,1713765054585,-1477.65,0.00021917,2]
[323166336,1713765054594,-1355.64,0.00021917,2]
[323166337,1713765054604,-1355.64,0.00021917,2]
[323166338,1713765054613,-1355.64,0.00021917,2]
[323166339,1713765054622,-1355.64,0.00021917,2]
[323166340,1713765054635,-1355.64,0.00021917,2]
[323166341,1713765054644,-500.0,0.00021917,2]
[323166342,1713765054653,-893.86315201,0.00021917,2]
[323166349,1713765531398,1813.36232879,0.0002,2]
[323166386,1713765967912,154.84515485,0.00017532,2]
[323166387,1713765987742,154.84515485,0.00017532,2]
[323166392,1713766005562,154.84515485,0.00017532,2]
[323166393,1713766027567,154.84515485,0.00017532,2]
[323166394,1713766047569,156.3735317,0.00017532,2]
[323167077,1713766238564,-364.8548493,0.0002059,2]
[323167079,1713766238574,-1311.46340123,0.0002059,2]
[323167080,1713766238584,-549.48258406,0.00020591,2]
[323167082,1713766238593,-2099.05646455,0.00020592,2]
[323167085,1713766238603,-154.84515485,0.00020592,2]
[323167087,1713766238611,-1771.78028862,0.00020593,7]
[323169175,1713767216519,33590.27331811,0.0002,2]
[323169177,1713767259241,300.92,0.000267,120]
[323169185,1713767369251,129050.86251252,0.0002,2]
[323169224,1713767432724,-1289.45845379,0.00020414,7]
[323169292,1713767438776,-297.845554,0.00020414,7]
[323169293,1713767438788,-309.62,0.00020414,7]
[323169312,1713767442507,-364.8548493,0.00020413,2]
[323169313,1713767442517,-623.91622527,0.00020414,7]
[323169314,1713767442563,-609.7622977,0.00020414,7]
[323169315,1713767442574,-549.48258406,0.00020415,2]
[323169316,1713767442584,-203.80378127,0.00020415,2]
[323169317,1713767442593,-598.7789933,0.00020438,2]
[323169318,1713767442602,-220.557207,0.00020471,2]
[323169319,1713767442611,-1504.22084855,0.00020749,2]
[323169320,1713767442621,-1000.0,0.00021,12]